fUSD/lending_fUSD_20240209
["ID","MTS","AMOUNT","RATE_DAILY","PERIOD"]
[313623602,1707487235316,-703.51,0.00042191,31]
[313623603,1707487235345,-569.08,0.00042191,31]
[313623604,1707487235375,-500.0,0.00042191,31]
[313623605,1707487235404,-509.29417096,0.00042191,31]
[313623606,1707487235435,-500.0,0.00042191,31]
[313623607,1707487235467,-500.0,0.00042191,31]
[313623608,1707487235499,-500.0,0.00042191,31]
[313623609,1707487235530,-500.0,0.00042191,31]
[313623610,1707487235563,-533.31172272,0.00042191,31]
[313623611,1707487235592,-500.0,0.00042191,31]
[313623612,1707487235621,-667.56,0.00042191,31]
[313623613,1707487235651,-500.0,0.00042191,31]
[313623614,1707487235682,-500.0,0.00042191,31]
[313623615,1707487235712,-500.0,0.00042191,31]
[313623616,1707487235742,-500.0,0.00042191,31]
[313623617,1707487235773,-500.0,0.00042191,31]
[313623618,1707487235803,-500.0,0.00042191,31]
[313623619,1707487235833,-500.0,0.00042191,31]
[313623620,1707487235862,-500.0,0.00042191,31]
[313623621,1707487235891,-500.0,0.00042191,31]
[313623622,1707487235921,-500.0,0.00042191,31]
[313623623,1707487235949,-500.0,0.00042191,31]
[313623624,1707487235978,-500.0,0.00042191,31]
[313623625,1707487236006,-500.0,0.00042191,31]
[313623626,1707487236036,-500.0,0.00042191,31]
[313623627,1707487236064,-500.0,0.00042191,31]
[313623628,1707487236093,-500.0,0.00042191,31]
[313623629,1707487236124,-500.0,0.00042191,31]
[313623630,1707487236154,-500.0,0.00042191,31]
[313623631,1707487236183,-500.0,0.00042191,31]
[313623632,1707487236211,-500.0,0.00042191,31]
[313623633,1707487236239,-500.0,0.00042191,31]
[313623634,1707487236268,-500.0,0.00042191,31]
[313623635,1707487236302,-500.0,0.00042191,31]
[313623636,1707487236332,-500.0,0.00042191,31]
[313623637,1707487236363,-500.0,0.00042191,31]
[313623638,1707487236393,-500.0,0.00042191,31]
[313623639,1707487236425,-500.0,0.00042191,31]
[313623640,1707487236456,-575.4228775,0.00042191,31]
[313623641,1707487236486,-500.0,0.00042191,31]
[313623642,1707487236515,-500.0,0.00042191,31]
[313623643,1707487236545,-500.0,0.00042191,31]
[313623644,1707487236574,-500.0,0.00042191,31]
[313623645,1707487236604,-500.0,0.00042191,31]
[313623646,1707487236736,-538.74,0.00042191,31]
[313623647,1707487236767,-500.0,0.00042191,31]
[313623648,1707487236800,-349.2933537,0.00042191,31]
[313623649,1707487236831,-500.0,0.00042191,31]
[313623650,1707487236859,-500.0,0.00042191,31]
[313623651,1707487236888,-500.0,0.00042191,31]
[313623652,1707487236918,-500.0,0.00042191,31]
[313623653,1707487236946,-500.0,0.00042191,31]
[313623654,1707487236977,-500.0,0.00042191,31]
[313623655,1707487237006,-500.0,0.00042191,31]
[313623656,1707487237034,-500.0,0.00042191,31]
[313623657,1707487237066,-500.0,0.00042191,31]
[313623658,1707487237096,-500.0,0.00042191,31]
[313623659,1707487237130,-500.0,0.00042191,31]
[313623660,1707487237160,-791.57,0.00042191,31]
[313623661,1707487237189,-500.0,0.00042191,31]
[313623662,1707487237219,-514.45,0.00042191,31]
[313623663,1707487237249,-500.0,0.00042191,31]
[313623664,1707487237279,-500.0,0.00042191,31]
[313623665,1707487237308,-630.56271475,0.00042191,31]
[313623666,1707487237337,-500.0,0.00042191,31]
[313623667,1707487237367,-500.0,0.00042191,31]
[313623668,1707487237397,-500.0,0.00042191,31]
[313623669,1707487237427,-239.57544783,0.00042191,31]
[313623670,1707487237456,-500.0,0.00042191,31]
[313623671,1707487237485,-500.0,0.00042191,31]
[313623672,1707487237515,-500.0,0.00042191,31]
[313623673,1707487237545,-500.0,0.00042191,31]
[313623674,1707487237576,-500.0,0.00042191,31]
[313623675,1707487237606,-500.0,0.00042191,31]
[313623676,1707487237640,-150.0,0.00042191,31]
[313623677,1707487237670,-500.0,0.00042191,31]
[313623678,1707487237699,-882.64,0.00042191,31]
[313623679,1707487237729,-500.0,0.00042191,31]
[313623680,1707487237758,-500.0,0.00042191,31]
[313623681,1707487237787,-500.0,0.00042191,31]
[313623682,1707487237816,-500.0,0.00042191,31]
[313623683,1707487237846,-500.0,0.00042191,31]
[313623684,1707487237876,-500.0,0.00042191,31]
[313623685,1707487237905,-500.0,0.00042191,31]
[313623686,1707487237934,-500.0,0.00042191,31]
[313623687,1707487237963,-500.0,0.00042191,31]
[313623688,1707487237992,-500.0,0.00042191,31]
[313623689,1707487238022,-500.0,0.00042191,31]
[313623690,1707487238050,-524.03055706,0.00042191,31]
[313623691,1707487238082,-500.0,0.00042191,31]
[313623692,1707487238111,-500.0,0.00042191,31]
[313623693,1707487238144,-500.0,0.00042191,31]
[313623694,1707487238176,-500.0,0.00042191,31]
[313623695,1707487238204,-654.43,0.00042191,31]
[313623696,1707487238234,-500.0,0.00042191,31]
[313623697,1707487238263,-500.0,0.00042191,31]
[313623698,1707487238293,-600.84040454,0.00042191,31]
[313623699,1707487238322,-503.59,0.00042191,31]
[313623700,1707487238352,-500.0,0.00042191,31]
[313623701,1707487238382,-500.0,0.00042191,31]
[313623702,1707487238413,-500.0,0.00042191,31]
[313623703,1707487238444,-500.0,0.00042191,31]
[313623704,1707487238474,-500.0,0.00042191,30]
[313623705,1707487238503,-500.0,0.00042191,31]
[313623706,1707487238533,-500.0,0.00042191,31]
[313623707,1707487238564,-500.0,0.00042191,31]
[313623708,1707487238597,-500.0,0.00042191,31]
[313623709,1707487238627,-500.0,0.00042191,31]
[313623710,1707487238657,-500.0,0.00042191,31]
[313623711,1707487238688,-500.0,0.00042191,31]
[313623712,1707487238717,-500.0,0.00042191,31]
[313623713,1707487238746,-500.0,0.00042191,31]
[313623714,1707487238776,-500.0,0.00042191,31]
[313623715,1707487238806,-500.0,0.00042191,31]
[313623716,1707487238838,-556.45,0.00042191,31]
[313623717,1707487238868,-500.0,0.00042191,31]
[313623718,1707487238899,-500.0,0.00042191,31]
[313623719,1707487238930,-500.0,0.00042191,31]
[313623720,1707487238961,-500.0,0.00042191,31]
[313623721,1707487238991,-793.37,0.00042191,31]
[313623722,1707487239022,-500.0,0.00042191,31]
[313623723,1707487239054,-500.0,0.00042191,31]
[313623724,1707487239085,-500.0,0.00042191,31]
[313623725,1707487239116,-500.0,0.00042191,31]
[313623726,1707487239147,-500.0,0.00042191,31]
[313623727,1707487239178,-767.91,0.00042191,31]
[313623728,1707487239208,-500.0,0.00042191,31]
[313623729,1707487239240,-675.64,0.00042191,31]
[313623730,1707487239289,-500.0,0.00042191,31]
[313623731,1707487239322,-500.0,0.00042191,31]
[313623732,1707487239354,-500.0,0.00042191,31]
[313623733,1707487239385,-566.47,0.00042191,31]
[313623734,1707487239418,-500.0,0.00042191,31]
[313623735,1707487239722,-959.36,0.00042191,31]
[313623736,1707487239765,-500.0,0.00042191,31]
[313623737,1707487239803,-500.0,0.00042191,31]
[313623738,1707487239835,-500.0,0.00042191,31]
[313623739,1707487239869,-500.0,0.00042191,31]
[313623740,1707487239901,-500.0,0.00042191,31]
[313623741,1707487239931,-414.17469644,0.00042191,31]
[313623742,1707487239962,-500.0,0.00042191,31]
[313623743,1707487239993,-500.0,0.00042191,31]
[313623744,1707487240031,-906.86,0.00042191,31]
[313623745,1707487240062,-505.84103869,0.00042191,31]
[313623746,1707487240094,-3115.29,0.00042191,31]
[313623747,1707487240126,-500.0,0.00042191,31]
[313623748,1707487240156,-540.08,0.00042191,31]
[313623749,1707487240187,-500.0,0.00042191,31]
[313623750,1707487240217,-518.84,0.00042191,31]
[313623751,1707487240247,-518.42,0.00042191,31]
[313623752,1707487240277,-500.0,0.00042191,31]
[313623753,1707487240315,-8148.69,0.00042191,31]
[313623754,1707487240346,-500.0,0.00042191,31]
[313623755,1707487240377,-792.43,0.00042191,31]
[313623756,1707487240409,-500.0,0.00042191,31]
[313623757,1707487240440,-500.0,0.00042191,31]
[313623758,1707487240471,-500.0,0.00042191,31]
[313623759,1707487240502,-562.48,0.00042191,31]
[313623760,1707487240533,-500.0,0.00042191,31]
[313623761,1707487240568,-2542.57,0.00042191,31]
[313623762,1707487240598,-538.601191,0.00042191,31]
[313623763,1707487240631,-1246.8,0.00042191,31]
[313623764,1707487240665,-500.0,0.00042191,31]
[313623765,1707487240698,-500.0,0.00042191,31]
[313623766,1707487240730,-776.48,0.00042191,31]
[313623767,1707487240762,-500.0,0.00042191,31]
[313623768,1707487240795,-500.0,0.00042191,31]
[313623769,1707487240827,-2162.48,0.00042191,31]
[313623770,1707487240860,-3129.95,0.00042191,31]
[313623771,1707487240895,-677.1,0.00042191,31]
[313623772,1707487240928,-500.0,0.00042191,31]
[313623773,1707487240962,-1314.52,0.00042191,31]
[313623774,1707487240994,-500.0,0.00042191,31]
[313623775,1707487241026,-1064.38,0.00042191,31]
[313623776,1707487241058,-1610.95,0.00042191,31]
[313623777,1707487241092,-500.0,0.00042191,31]
[313623778,1707487241127,-987.1,0.00042191,31]
[313623779,1707487241159,-500.0,0.00042191,31]
[313623780,1707487241194,-558.21,0.00042191,31]
[313623781,1707487241225,-500.0,0.00042191,31]
[313623782,1707487241257,-500.0,0.00042191,31]
[313623783,1707487241290,-1288.44,0.00042191,31]
[313623784,1707487241324,-500.0,0.00042191,31]
[313623785,1707487241357,-923.0,0.00042191,31]
[313623786,1707487241389,-3513.3,0.00042191,31]
[313623787,1707487241421,-2977.12,0.00042191,31]
[313623788,1707487241454,-3585.81,0.00042191,31]
[313623789,1707487241490,-1111.32,0.00042191,31]
[313623790,1707487241521,-373.78442618,0.00042191,31]
[313623791,1707487241554,-4092.82,0.00042191,31]
[313623792,1707487241586,-500.0,0.00042191,31]
[313623793,1707487241617,-500.0,0.00042191,31]
[313623794,1707487241649,-810.54,0.00042191,31]
[313623795,1707487241682,-1445.78,0.00042191,31]
[313623796,1707487241714,-1968.03,0.00042191,31]
[313623797,1707487241745,-2143.34,0.00042191,31]
[313623798,1707487241777,-500.0,0.00042191,31]
[313623799,1707487241809,-842.81,0.00042191,31]
[313623800,1707487241841,-4396.32,0.00042191,31]
[313623801,1707487241874,-500.0,0.00042191,31]
[313623802,1707487241905,-500.0,0.00042191,31]
[313623803,1707487241935,-500.0,0.00042191,31]
[313623804,1707487241967,-500.0,0.00042191,31]
[313623805,1707487241999,-1531.14,0.00042191,31]
[313623806,1707487242030,-3098.41,0.00042191,31]
[313623807,1707487242115,-500.0,0.00042191,31]
[313623808,1707487242152,-500.0,0.00042191,31]
[313623809,1707487242184,-3134.49,0.00042191,31]
[313623810,1707487242219,-500.0,0.00042191,31]
[313623811,1707487242250,-500.0,0.00042191,31]
[313623812,1707487242281,-1285.67,0.00042191,31]
[313623813,1707487242312,-805.62,0.00042191,31]
[313623814,1707487242342,-850.45,0.00042191,31]
[313623815,1707487242373,-1725.82,0.00042191,31]
[313623816,1707487242405,-1105.94,0.00042191,31]
[313623817,1707487242435,-500.0,0.00042191,31]
[313623818,1707487242466,-500.0,0.00042191,31]
[313623819,1707487242498,-555.42,0.00042191,31]
[313623820,1707487242532,-329.79528071,0.00042191,31]
[313623821,1707487242563,-500.0,0.00042191,31]
[313623822,1707487242594,-600.94,0.00042191,31]
[313623823,1707487242625,-24179.07,0.00042191,31]
[313623824,1707487242662,-1181.34,0.00042191,31]
[313623825,1707487242699,-1991.35,0.00042191,31]
[313623826,1707487242731,-500.0,0.00042191,31]
[313623827,1707487242762,-609.11,0.00042191,31]
[313623828,1707487242792,-500.0,0.00042191,31]
[313623829,1707487242825,-2548.88,0.00042191,31]
[313623830,1707487242855,-500.0,0.00042191,31]
[313623831,1707487242886,-2801.13,0.00042191,31]
[313623832,1707487242917,-500.0,0.00042191,31]
[313623833,1707487242949,-565.44,0.00042191,31]
[313623834,1707487242983,-804.55,0.00042191,31]
[313623835,1707487243014,-500.0,0.00042191,31]
[313623836,1707487243046,-500.0,0.00042191,31]
[313623837,1707487243077,-473.85467042,0.00042191,31]
[313623838,1707487243112,-2278.6,0.00042191,31]
[313623839,1707487243144,-696.66,0.00042191,31]
[313623840,1707487243178,-1670.47,0.00042191,31]
[313623841,1707487243213,-500.0,0.00042191,31]
[313623842,1707487243245,-2437.96,0.00042191,31]
[313623843,1707487243277,-885.62,0.00042191,31]
[313623844,1707487243309,-500.0,0.00042191,31]
[313623845,1707487243343,-1332.36,0.00042191,31]
[313623846,1707487243375,-500.0,0.00042191,31]
[313623847,1707487243406,-500.0,0.00042191,31]
[313623848,1707487243437,-651.87,0.00042191,31]
[313623849,1707487243469,-969.78,0.00042191,31]
[313623850,1707487243501,-4470.0,0.00042191,31]
[313623851,1707487243531,-1146.57,0.00042191,31]
[313623852,1707487243561,-500.0,0.00042191,31]
[313623853,1707487243592,-500.0,0.00042191,31]
[313623854,1707487243623,-500.0,0.00042191,31]
[313623855,1707487243653,-1928.88,0.00042191,31]
[313623856,1707487243685,-500.0,0.00042191,31]
[313623857,1707487243718,-500.0,0.00042191,31]
[313623858,1707487243749,-10078.95,0.00042191,31]
[313623859,1707487243780,-1196.87,0.00042191,31]
[313623860,1707487243811,-500.0,0.00042191,31]
[313623861,1707487243843,-4162.47,0.00042191,31]
[313623862,1707487243873,-528.54,0.00042191,31]
[313623863,1707487243904,-2259.42,0.00042191,31]
[313623864,1707487243936,-500.0,0.00042191,31]
[313623865,1707487243967,-1066.85,0.00042191,31]
[313623866,1707487243998,-5424.04,0.00042191,31]
[313623867,1707487244029,-500.0,0.00042191,31]
[313623868,1707487244061,-500.0,0.00042191,31]
[313623869,1707487244094,-1913.56,0.00042191,31]
[313623870,1707487244129,-1793.82,0.00042191,31]
[313623871,1707487244161,-500.0,0.00042191,31]
[313623872,1707487244194,-3060.13,0.00042191,31]
[313623873,1707487244226,-500.0,0.00042191,31]
[313623874,1707487244261,-500.0,0.00042191,31]
[313623875,1707487244293,-500.0,0.00042191,31]
[313623876,1707487244330,-5683.63,0.00042191,31]
[313623877,1707487244363,-1958.55,0.00042191,31]
[313623878,1707487244394,-1516.62,0.00042191,31]
[313623879,1707487244426,-652.08,0.00042191,31]
[313623880,1707487244459,-500.0,0.00042191,31]
[313623881,1707487244496,-500.0,0.00042191,31]
[313623882,1707487244532,-2458.11,0.00042191,31]
[313623883,1707487244563,-502.16,0.00042191,31]
[313623884,1707487244595,-500.0,0.00042191,31]
[313623885,1707487244627,-907.73,0.00042191,31]
[313623886,1707487244660,-4451.57,0.00042191,31]
[313623887,1707487244690,-688.57,0.00042191,31]
[313623888,1707487244720,-500.0,0.00042191,31]
[313623889,1707487244752,-3925.43,0.00042191,31]
[313623890,1707487244782,-500.0,0.00042191,31]
[313623891,1707487244813,-908.3,0.00042191,31]
[313623892,1707487244845,-500.0,0.00042191,31]
[313623893,1707487244876,-500.0,0.00042191,31]
[313623894,1707487244911,-811.04,0.00042191,31]
[313623895,1707487244942,-500.0,0.00042191,31]
[313623896,1707487244974,-2239.6,0.00042191,31]
[313623897,1707487245007,-500.0,0.00042191,31]
[313623898,1707487245040,-500.0,0.00042191,31]
[313623899,1707487245076,-500.0,0.00042191,31]
[313623900,1707487245109,-8191.36,0.00042191,31]
[313623901,1707487245143,-500.0,0.00042465,31]
[313623902,1707487245179,-500.0,0.00042465,31]
[313623903,1707487245215,-500.0,0.00042465,31]
[313623904,1707487245246,-500.0,0.00042465,31]
[313623905,1707487245277,-500.0,0.00042465,31]
[313623906,1707487245310,-500.0,0.00042465,31]
[313623907,1707487245350,-500.0,0.00042465,31]
[313623908,1707487245386,-500.0,0.00042465,31]
[313623909,1707487245421,-500.0,0.00042465,31]
[313623910,1707487245457,-500.0,0.00042465,31]
[313623911,1707487245494,-500.0,0.00042465,31]
[313623912,1707487245654,-500.0,0.00042465,31]
[313623913,1707487245690,-500.0,0.00042465,31]
[313623914,1707487245722,-500.0,0.00042465,31]
[313623915,1707487245755,-500.0,0.00042465,31]
[313623916,1707487245790,-500.0,0.00042465,31]
[313623917,1707487245823,-500.0,0.00042465,31]
[313623918,1707487245852,-500.0,0.00042465,31]
[313623919,1707487245882,-500.0,0.00042465,31]
[313623920,1707487245912,-612.46461576,0.00042465,31]
[313623921,1707487245942,-500.0,0.00042465,31]
[313623922,1707487245973,-500.0,0.00042465,31]
[313623923,1707487246002,-500.0,0.00042465,31]
[313623924,1707487246033,-500.0,0.00042465,31]
[313623925,1707487246064,-500.0,0.00042465,31]
[313623926,1707487246103,-500.0,0.00042465,31]
[313623927,1707487246139,-500.0,0.00042465,31]
[313623928,1707487246172,-500.0,0.00042465,31]
[313623929,1707487246206,-645.36955998,0.00042465,31]
[313623930,1707487246236,-500.0,0.00042465,31]
[313623931,1707487246268,-500.0,0.00042465,31]
[313623932,1707487246300,-500.0,0.00042465,31]
[313623933,1707487246331,-500.0,0.00042465,31]
[313623934,1707487246361,-527.71,0.00042465,31]
[313623935,1707487246392,-500.0,0.00042465,31]
[313623936,1707487246423,-500.0,0.00042465,31]
[313623937,1707487246456,-515.97456376,0.00042465,31]
[313623938,1707487246488,-500.0,0.00042465,31]
[313623939,1707487246521,-500.0,0.00042465,31]
[313623940,1707487246551,-500.0,0.00042465,31]
[313623941,1707487246583,-500.0,0.00042465,31]
[313623942,1707487246613,-500.0,0.00042465,31]
[313623943,1707487246644,-500.0,0.00042465,31]
[313623944,1707487246674,-500.0,0.00042465,31]
[313623945,1707487246704,-500.0,0.00042465,31]
[313623946,1707487246735,-500.0,0.00042465,31]
[313623947,1707487246765,-500.0,0.00042465,31]
[313623948,1707487246795,-500.0,0.00042465,31]
[313623949,1707487246824,-500.0,0.00042465,31]
[313623950,1707487246853,-500.05039086,0.00042465,31]
[313623951,1707487246883,-500.0,0.00042465,31]
[313623952,1707487246912,-236.58222754,0.00042465,31]
[313623953,1707487246942,-500.0,0.00042465,31]
[313623954,1707487246971,-500.0,0.00042465,31]
[313623955,1707487247001,-1417.37,0.00042465,31]
[313623956,1707487247030,-500.0,0.00042465,31]
[313623957,1707487247065,-500.0,0.00042465,31]
[313623958,1707487247096,-500.0,0.00042465,31]
[313623959,1707487247126,-500.0,0.00042465,31]
[313623960,1707487247156,-500.0,0.00042465,31]
[313623961,1707487247187,-500.0,0.00042465,31]
[313623962,1707487247218,-605.31832333,0.00042465,31]
[313623963,1707487247250,-500.0,0.00042465,31]
[313623964,1707487247285,-500.0,0.00042465,31]
[313623965,1707487247322,-500.0,0.00042465,31]
[313623966,1707487247354,-500.0,0.00042465,31]
[313623967,1707487247386,-500.0,0.00042465,31]
[313623968,1707487247417,-534.34881838,0.00042465,31]
[313623969,1707487247450,-1448.12,0.00042465,31]
[313623970,1707487247485,-500.0,0.00042465,31]
[313623971,1707487247523,-500.0,0.00042465,31]
[313623972,1707487247556,-344.26318394,0.00042465,31]
[313623973,1707487247589,-500.0,0.00042465,31]
[313623974,1707487247619,-500.0,0.00042465,31]
[313623975,1707487247648,-500.0,0.00042465,31]
[313623976,1707487247678,-500.0,0.00042465,31]
[313623977,1707487247707,-500.0,0.00042465,31]
[313623978,1707487247737,-500.0,0.00042465,31]
[313623979,1707487247766,-912.23,0.00042465,31]
[313623980,1707487247796,-500.0,0.00042465,31]
[313623981,1707487247826,-500.0,0.00042465,31]
[313623982,1707487247856,-500.0,0.00042465,31]
[313623983,1707487247886,-500.0,0.00042465,31]
[313623984,1707487247915,-500.0,0.00042465,31]
[313623985,1707487247944,-500.0,0.00042465,31]
[313623986,1707487247972,-500.0,0.00042465,31]
[313623987,1707487248002,-870.43,0.00042465,31]
[313623988,1707487248032,-500.0,0.00042465,31]
[313623989,1707487248062,-500.0,0.00042465,31]
[313623990,1707487248092,-500.0,0.00042465,31]
[313623991,1707487248123,-500.0,0.00042465,31]
[313623992,1707487248152,-500.0,0.00042465,31]
[313623993,1707487248181,-496.49482654,0.00042465,31]
[313623994,1707487248211,-500.0,0.00042465,31]
[313623995,1707487248240,-500.0,0.00042465,31]
[313623996,1707487248270,-500.0,0.00042465,31]
[313623997,1707487248299,-500.0,0.00042465,31]
[313623998,1707487248329,-500.0,0.00042465,31]
[313623999,1707487248360,-543.26205005,0.00042465,31]
[313624000,1707487248391,-500.0,0.00042465,31]
[313624001,1707487248659,-518.28438586,0.00042465,31]
[313624002,1707487248692,-500.0,0.00042465,31]
[313624003,1707487248723,-500.0,0.00042465,31]
[313624004,1707487248753,-500.0,0.00042465,31]
[313624005,1707487248784,-500.0,0.00042465,31]
[313624006,1707487248817,-500.0,0.00042465,31]
[313624007,1707487248849,-500.0,0.00042465,31]
[313624008,1707487248879,-500.0,0.00042465,31]
[313624009,1707487248910,-500.0,0.00042465,31]
[313624010,1707487248941,-500.0,0.00042465,31]
[313624011,1707487248971,-620.97,0.00042465,31]
[313624012,1707487249000,-521.41972258,0.00042465,31]
[313624013,1707487249036,-506.38110057,0.00042465,31]
[313624014,1707487249065,-500.0,0.00042465,31]
[313624015,1707487249097,-500.0,0.00042465,31]
[313624016,1707487249128,-500.0,0.00042465,31]
[313624017,1707487249159,-500.0,0.00042465,31]
[313624018,1707487249189,-500.0,0.00042465,31]
[313624019,1707487249220,-564.88,0.00042465,31]
[313624020,1707487249249,-606.16909567,0.00042465,31]
[313624021,1707487249280,-561.54,0.00042465,31]
[313624022,1707487249310,-489.25872661,0.00042465,31]
[313624023,1707487249341,-500.0,0.00042465,31]
[313624024,1707487249371,-500.0,0.00042465,31]
[313624025,1707487249405,-166.93523649,0.00042465,31]
[313624026,1707487249436,-500.0,0.00042465,31]
[313624027,1707487249467,-500.0,0.00042465,31]
[313624028,1707487249498,-500.0,0.00042465,31]
[313624029,1707487249528,-650.82,0.00042465,31]
[313624030,1707487249559,-500.0,0.00042465,31]
[313624031,1707487249590,-500.0,0.00042465,31]
[313624032,1707487249620,-500.0,0.00042465,31]
[313624033,1707487249651,-500.0,0.00042465,31]
[313624034,1707487249684,-500.0,0.00042465,31]
[313624035,1707487249715,-500.0,0.00042465,31]
[313624036,1707487249745,-500.0,0.00042465,31]
[313624037,1707487249774,-521.01941468,0.00042465,31]
[313624038,1707487249803,-500.0,0.00042465,31]
[313624039,1707487249833,-566.40381937,0.00042465,31]
[313624040,1707487249863,-544.24394287,0.00042465,31]
[313624041,1707487249893,-2937.23,0.00042465,31]
[313624042,1707487249923,-518.94763426,0.00042465,31]
[313624043,1707487249953,-500.0,0.00042465,31]
[313624044,1707487249983,-500.0,0.00042465,31]
[313624045,1707487250012,-500.0,0.00042465,31]
[313624046,1707487250049,-500.0,0.00042465,31]
[313624047,1707487250079,-500.0,0.00042465,31]
[313624048,1707487250110,-519.87761852,0.00042465,31]
[313624049,1707487250142,-500.0,0.00042465,31]
[313624050,1707487250173,-500.0,0.00042465,31]
[313624051,1707487250209,-332.31659259,0.00042465,31]
[313624052,1707487250242,-703.51,0.00042465,31]
[313624053,1707487250274,-569.08,0.00042465,31]
[313624054,1707487250305,-433.75577193,0.00042465,31]
[313624055,1707487250350,-500.0,0.00042465,31]
[313624056,1707487250382,-580.93524399,0.00042465,31]
[313624057,1707487250414,-500.0,0.00042465,31]
[313624058,1707487250446,-500.0,0.00042465,31]
[313624059,1707487250477,-500.0,0.00042465,31]
[313624060,1707487250509,-667.56,0.00042465,31]
[313624061,1707487250541,-500.0,0.00042465,31]
[313624062,1707487250572,-500.0,0.00042465,31]
[313624063,1707487250604,-500.0,0.00042465,31]
[313624064,1707487250635,-500.0,0.00042465,31]
[313624065,1707487250666,-500.0,0.00042465,31]
[313624066,1707487250702,-500.0,0.00042465,31]
[313624067,1707487250733,-500.0,0.00042465,31]
[313624068,1707487250765,-500.0,0.00042465,31]
[313624069,1707487250798,-500.0,0.00042465,31]
[313624070,1707487250830,-500.0,0.00042465,31]
[313624071,1707487250863,-520.69759646,0.00042465,31]
[313624072,1707487250895,-500.0,0.00042465,31]
[313624073,1707487250973,-500.0,0.00042465,31]
[313624074,1707487251007,-500.0,0.00042465,31]
[313624075,1707487251039,-500.0,0.00042465,31]
[313624076,1707487251071,-500.0,0.00042465,31]
[313624077,1707487251103,-500.0,0.00042465,31]
[313624078,1707487251136,-500.0,0.00042465,31]
[313624079,1707487251167,-500.0,0.00042465,31]
[313624080,1707487251198,-500.0,0.00042465,31]
[313624081,1707487251229,-500.0,0.00042465,31]
[313624082,1707487251260,-500.0,0.00042465,31]
[313624083,1707487251292,-500.0,0.00042465,31]
[313624084,1707487251325,-500.0,0.00042465,31]
[313624085,1707487251358,-500.0,0.00042465,31]
[313624086,1707487251391,-500.0,0.00042465,31]
[313624087,1707487251425,-500.0,0.00042465,31]
[313624088,1707487251461,-500.0,0.00042465,31]
[313624089,1707487251495,-516.82140705,0.00042465,31]
[313624090,1707487251527,-500.0,0.00042465,31]
[313624091,1707487251560,-584.64,0.00042465,31]
[313624092,1707487251599,-500.0,0.00042465,31]
[313624093,1707487251632,-538.74,0.00042465,31]
[313624094,1707487251663,-500.0,0.00042465,31]
[313624095,1707487251694,-601.89751719,0.00042465,31]
[313624096,1707487251725,-500.0,0.00042465,31]
[313624097,1707487251754,-500.0,0.00042465,31]
[313624098,1707487251783,-500.0,0.00042465,31]
[313624099,1707487251813,-608.36848156,0.00042465,31]
[313624100,1707487251844,-500.0,0.00042465,31]
[313624101,1707487251873,-500.0,0.00042465,31]